Cogmind - Beta 9.2 @@@ ROGUE MODE // 2019.12.07 @ 00:40:24 Player: Urist Result: Destroyed by G-34 Mercenary with Small Laser Performance ------------- Evolutions (1) 500 Regions Visited (3) 600 Robots Destroyed (8) 40 Value Destroyed (234) 234 Prototype IDs (0) 0 Alien Tech Used (0) 0 Bonus (0) 0 TOTAL SCORE: 1374 Bonus ------- None Cogmind --------- Core Integrity 0/400 Matter 495/500 Energy 100/100 System Corruption 0% Temperature Cool (6) Movement Walking (120) Location -9/Materials Parts ------- > --- POWER (2) -------- (None) > --- PROPULSION (2) --- Aluminum Leg > --- UTILITY (3) ------ High-capacity Matter Pod > --- WEAPON (2) ------- (None) > --- INVENTORY (4) ---- (None) Peak State ------------ > --- POWER ------------ Light Ion Engine > --- PROPULSION ------- Aluminum Leg Aluminum Leg > --- UTILITY ---------- Heat Sink High-capacity Matter Pod > --- WEAPON ----------- Light Assault Rifle Light Assault Rifle > --- INVENTORY -------- Aluminum Leg Wheel Wheel Small Laser [Rating: 7] Favorites ----------- Power Light Ion Engine Engine Light Ion Engine Propulsion Aluminum Leg Leg Aluminum Leg Wheel Wheel Utility High-capacity Matter Pod Device Heat Sink Storage High-capacity Matter Pod Protection Medium Armor Plating Weapon Light Assault Rifle Energy Gun Beam Rifle Energy Cannon Beam Cannon Ballistic Gun Light Assault Rifle Build | -11 -10 -10 -9 ------- Run | Scr Mat Min Mat Slots Evolved 2 | . . . 2 Power 1 | . . . 1 Propulsion . | . . . . Utility 1 | . . . 1 Weapon . | . . . . Parts Attached 17 | 6 1 . 10 Power 2 | 1 . . 1 Engine 2 | 1 . . 1 Core . | . . . . Reactor . | . . . . Propulsion 5 | 2 . . 3 Treads . | . . . . Leg 3 | 2 . . 1 Wheel 2 | . . . 2 Hover . | . . . . Flight . | . . . . Utility 3 | 1 1 . 1 Device 1 | 1 . . . Storage 1 | . 1 . . Processor . | . . . . Hackware . | . . . . Protection 1 | . . . 1 Artifact . | . . . . Weapon 7 | 2 . . 5 Energy Gun 1 | . . . 1 Energy Cannon 1 | . . . 1 Ballistic Gun 5 | 2 . . 3 Ballistic Cannon . | . . . . Launcher . | . . . . Special Weapon . | . . . . Impact Weapon . | . . . . Slashing Weapon . | . . . . Piercing Weapon . | . . . . Special Melee Weapon . | . . . . Unidentified Prototypes . | . . . . Parts Lost 14 | . . . 14 Power 2 | . . . 2 Propulsion 4 | . . . 4 Utility 2 | . . . 2 Weapon 6 | . . . 6 Highest Loss Streak 8 | . . . 8 Average Slot Usage (%) 82 | . 91 100 51 Engine 10 | . 14 14 3 Leg 20 | . 28 28 7 Wheel 4 | . . . 11 Device 10 | . 14 14 2 Storage 12 | . 6 14 11 Protection 1 | . . . 4 Ballistic Gun 21 | . 28 28 8 Naked Turns . | . . . . Heaviest Build 14 | 6 10 10 14 Greatest Support 20 | 20 20 20 20 Greatest Overweight (x) 1 | . . . 1 Average Overweight (x) . | . . . . Largest Inventory Capacity 4 | 4 4 4 4 Average Capacity 4 | 4 4 4 4 Most Carried 4 | 4 4 4 4 Average Carried 3 | 2 3 4 2 Final Capacity 4 | 4 4 4 4 Final Carried 4 | 4 4 4 . Class Distribution -------------------- 100% | Mutant Dominant Class ---------------- Mutant | -10/Materials Mutant | -10/Mines Mutant | -9/Materials Resources | -11 -10 -10 -9 ----------- Run | Scr Mat Min Mat Matter Collected 560 | 246 230 2 82 Remotely . | . . . . Salvage Created 281 | 35 . . 246 Parts 22 | 4 . . 18 Haulers Intercepted . | . . . . Recyclers Shooed . | . . . . Parts Field Recycled . | . . . . Retrieved Matter . | . . . . Parts Self-Destructed . | . . . . Prevented . | . . . . Kills | -11 -10 -10 -9 ------- Run | Scr Mat Min Mat Combat Hostiles Destroyed 8 | 1 . . 7 Melee 1 | . . . 1 Guns 3 | 1 . . 2 Cannons 4 | . . . 4 Classes Destroyed 3 | 1 . . 2 Swarmer 3 | . . . 3 Grunt 4 | 1 . . 3 Sentry 1 | . . . 1 Best Kill Streak 4 | 1 . . 4 Combat Bots Only 4 | 1 . . 4 Max Kills in Single Turn 1 | 1 . . 1 Gunslinging . | . . . . Exploded . | . . . . Melee 1 | . . . 1 Uniques/NPCs Destroyed . | . . . . Combat | -11 -10 -10 -9 -------- Run | Scr Mat Min Mat Damage Taken 1425 | 35 . . 1390 Core 412 | 11 . . 401 Absorbed by Shields . | . . . . Core Remaining (%) 95 | 95 . 95 . Volleys Fired 39 | 2 1 1 35 Largest 2 | 2 2 2 2 Hottest 80 | 40 40 40 80 Shots Fired 61 | 4 2 2 53 Gun 53 | 4 2 2 45 Cannon 8 | . . . 8 Launcher . | . . . . Special . | . . . . Kinetic 50 | 4 2 2 42 Thermal 11 | . . . 11 Explosive . | . . . . Electromagnetic . | . . . . Robot Hit Streak 6 | 4 5 . 6 Robot Miss Streak 7 | . 1 . 7 Penetration Max . | . . . . Secondary Targets . | . . . . Shots Hit Robots 33 | 4 1 . 28 Core Hits 20 | 2 . . 18 Critical Hits . | . . . . Critical Kills . | . . . . Critical Parts Destroyed . | . . . . Melee Attacks . | . . . . Impact . | . . . . Slashing . | . . . . Piercing . | . . . . Sneak Attacks . | . . . . Combat Hostiles . | . . . . Follow-up Attacks . | . . . . Damage Inflicted 387 | 27 7 . 353 Guns 257 | 27 7 . 223 Cannons 104 | . . . 104 Explosions . | . . . . Melee . | . . . . Ramming 26 | . . . 26 Kinetic 228 | 27 7 . 194 Thermal 133 | . . . 133 Explosive . | . . . . Electromagnetic . | . . . . Impact . | . . . . Slashing . | . . . . Piercing . | . . . . Highest Corruption . | . . . . Average Corruption . | . . . . Corruption Purged . | . . . . Overload Shots . | . . . . Overflow Damage . | . . . . Projectiles . | . . . . Explosions . | . . . . Melee . | . . . . Knockbacks . | . . . . Impact . | . . . . Kinetic . | . . . . Secondary . | . . . . Self-Inflicted Damage 11 | . . . 11 Shots . | . . . . Rammed 8 | . . . 8 Targets Rammed 8 | . . . 8 Kicked . | . . . . Crushed . | . . . . Highest Temperature 76 | 6 . . 76 Average Temperature 26 | 6 . . 28 Received Heat Transfer 621 | 18 . . 603 Siege Activations . | . . . . Robots Corrupted . | . . . . Combat Hostiles . | . . . . Parts Fried . | . . . . Impact Corruptions . | . . . . Robots Melted . | . . . . Combat Hostiles . | . . . . Parts Melted . | . . . . Heat Transferred 296 | . . . 296 Parts Sabotaged . | . . . . Parts Stolen . | . . . . Parts Stripped . | . . . . Power Chain Reactions . | . . . . Missiles Intercepted . | . . . . Alert | -11 -10 -10 -9 ------- Run | Scr Mat Min Mat Peak Influence 165 | 20 17 6 165 Average Influence 24 | 2 15 3 67 Maximum Alert Level . | . . . . Low Security (%) 100 | 100 100 100 100 Level 1 . | . . . . Level 2 . | . . . . Level 3 . | . . . . Level 4 . | . . . . Level 5 . | . . . . High Security . | . . . . Max Security . | . . . . Squads Dispatched 1 | . . . 1 Investigation . | . . . . Extermination . | . . . . Reinforcement 1 | . . . 1 Assault . | . . . . Garrison . | . . . . Intercept . | . . . . Construction Impeded . | . . . . Haulers Reinforced . | . . . . Stealth | -11 -10 -10 -9 --------- Run | Scr Mat Min Mat Distress Signals 1 | . . . 1 Communications Jammed . | . . . . Distress Signals . | . . . . Times Spotted 23 | 1 1 . 21 Peak Tracking Total 10 | 1 2 . 10 Tactical Retreats 6 | . . . 6 Traps | -11 -10 -10 -9 ------- Run | Scr Mat Min Mat Traps Triggered . | . . . . Indirectly . | . . . . Trap Hack Attempts . | . . . . Triggered . | . . . . Disarmed . | . . . . Reprogrammed . | . . . . Reused . | . . . . Traps Extracted . | . . . . Installed . | . . . . Triggered . | . . . . Machines | -11 -10 -10 -9 ---------- Run | Scr Mat Min Mat Machines Disabled 1 | . . . 1 Max in Single Turn 1 | . . . 1 Machines Sabotaged . | . . . . Garrisons Compromised . | . . . . Overloaded Fab Kills . | . . . . Fab Network Shutdowns . | . . . . Hacking | -11 -10 -10 -9 --------- Run | Scr Mat Min Mat Machines Accessed 2 | . 1 . 1 Terminals 2 | . 1 . 1 Fabricators . | . . . . Repair Stations . | . . . . Recycling Units . | . . . . Scanalyzers . | . . . . Garrison Access . | . . . . Total Hacks 6 | . 3 . 3 Successful 2 | . 1 . 1 Failed 4 | . 2 . 2 Catastrophic 1 | . . . 1 Database Lockouts . | . . . . Manual 3 | . 3 . . Terminals 6 | . 3 . 3 Fabricators . | . . . . Repair Stations . | . . . . Recycling Units . | . . . . Scanalyzers . | . . . . Garrison Access . | . . . . Terminal Hacks 2 | . 1 . 1 Locate Traps 1 | . 1 . . Recall Reinforcements 1 | . . . 1 Fabricator Hacks . | . . . . Repair Station Hacks . | . . . . Recycling Unit Hacks . | . . . . Scanalyzer . | . . . . Garrison Access Hacks . | . . . . Unauthorized Hacks . | . . . . Terminals . | . . . . Fabricators . | . . . . Repair Stations . | . . . . Recycling Units . | . . . . Scanalyzers . | . . . . Garrison Access . | . . . . Data Cores Recovered . | . . . . Used . | . . . . Hacking Detections 2 | . 1 . 1 Full Trace Events 1 | . . . 1 Feedback Events . | . . . . Feedback Blocked . | . . . . Robot Schematics Acquired . | . . . . Robots Built . | . . . . Matter . | . . . . Time . | . . . . Total Robot Build Rating . | . . . . Part Schematics Acquired . | . . . . Parts Built . | . . . . Matter . | . . . . Time . | . . . . Total Part Build Rating . | . . . . Parts Repaired . | . . . . Time . | . . . . Parts Recycled . | . . . . Recycled Matter . | . . . . Retrieved Matter . | . . . . Retrieved Components . | . . . . Parts Scanalyzed . | . . . . Part Schematics Acquired . | . . . . Parts Damaged . | . . . . Bothacking | -11 -10 -10 -9 ------------ Run | Scr Mat Min Mat Used RIF Installer . | . . . . Robots Hacked . | . . . . Non-combat . | . . . . Combat . | . . . . Robot Hacks Applied . | . . . . Relay Couplers Released . | . . . . Robots Rewired . | . . . . Allies Hacked . | . . . . Hacks Repelled . | . . . . Allies | -11 -10 -10 -9 -------- Run | Scr Mat Min Mat Total Allies . | . . . . Largest Group . | . . . . Highest-Rated Group . | . . . . Highest-Rated Ally . | . . . . Total Orders . | . . . . Ally Attacks . | . . . . Total Damage . | . . . . Kills . | . . . . Allies Corrupted . | . . . . Allies Melted . | . . . . Intel | -11 -10 -10 -9 ------- Run | Scr Mat Min Mat Robot Analysis Total . | . . . . Derelict Logs Recovered 1 | . . 1 . Drone Launches . | . . . . Drone Recoveries . | . . . . Exploration | -11 -10 -10 -9 ------------- Run | Scr Mat Min Mat Turns Passed 1172 | 89 91 625 367 Spaces Moved 891 | 68 71 482 270 Core 21 | 18 . . 3 Treads . | . . . . Legs 683 | 50 71 482 80 Wheels 187 | . . . 187 Hover . | . . . . Flight . | . . . . Fastest Speed 50 | 50 120 120 80 Average Speed 110 | 101 120 120 92 Slowest Speed 150 | 120 120 120 150 Overloaded Moves . | . . . . Propulsion Burnouts . | . . . . Robots Hopped . | . . . . Cave-ins Triggered . | . . . . Exploration Rate (%) 40 | 6 25 98 33 Regions Visited 3 Branch Regions 1 Pre-discovered Areas 1 | . . 1 . Known Exits Taken . | . . . . Unknown Exits Taken 3 | 1 1 1 . Scrap Searched 2 | . . 2 . Spaces Dug . | . . . . Terrain Destroyed . | . . . . Melee . | . . . . Projectile . | . . . . AOE . | . . . . Actions | -11 -10 -10 -9 --------- Run | Scr Mat Min Mat Total 1027 | 84 75 527 341 Wait 60 | . 1 45 14 Move 888 | 67 70 481 270 Hop . | . . . . Pick Up 14 | 9 1 . 4 Fast Attach 3 | 1 1 . 1 Attach 13 | 5 . . 8 Detach . | . . . . Swap 1 | . . . 1 Drop 1 | . 1 . . Fire 39 | 2 1 1 35 Melee . | . . . . Ram 8 | . . . 8 Kick . | . . . . Crush . | . . . . Escape Stasis . | . . . . Rewire . | . . . . Trap . | . . . . Miscellaneous . | . . . . Route ------- -11/Scrapyard -10/Materials -10/Mines (discovered 2 exits: *Mat x2) -9/Materials (discovered 1 exit: [*Min]) History --------- Turn | Location | Event 2 | -11/Scrapyard | Met Revision 17 68 | -11/Scrapyard | Discovered new exit (range 8) 90 | -11/Scrapyard | Entered Materials 153 | -10/Materials | Discovered new exit (range 15) 181 | -10/Materials | Entered Mines 312 | -10/Mines | Build established: Mutant 332 | -10/Mines | Discovered new exit (range 15) 799 | -10/Mines | Discovered new exit (range 5) 806 | -10/Mines | Entered Materials 806 | -9/Materials | Evolved 2 slots: Power x1, Utility x1 945 | -9/Materials | Core integrity fell below 50% 989 | -9/Materials | Lost 8 parts (1p2n1u4w) 1121 | -9/Materials | Core integrity fell below 20% 1171 | -9/Materials | Discovered new exit (range 10) 1173 | -9/Materials | Destroyed by G-34 Mercenary with Small Laser Last Messages --------------- Acquired 5 matter. K-01 Serf cleans the Fusion Modulator. Acquired 3 matter. R-06 Scavenger collects Heat Sink. Acquired 5 matter. K-01 Serf collects debris. R-06 Scavenger collects Hvy. Assault Rifle. K-01 Serf cleans the Fusion Modulator. R-06 Scavenger collects Lgt. Armor Plating. K-01 Serf cleans the Fusion Modulator. R-06 Scavenger collects Lgt. Treads. K-01 Serf collects debris. R-06 Scavenger collects Lgt. Treads. K-01 Serf collects debris. Material Compactor disabled. Beam Rifle destroyed. Wheel destroyed. Imp. Ion Engine destroyed. EXIT=FOUND [Achievement: First Step to Greatness] Map ----- +----------------------------------------------------+ | ??????????????????????????????????????????# """ | | ??????????????????????????????????????????# """ | | ??????????????????????????????????????????# """ | | ??????????????????????????????????????????# % | | ??????????????????????????????????????????#####+## | | ????????????????????????????????????????????# % | | ??????????????????????????????############### %% | | ??????????????????????????????# %= + | | ??????????????????????????????# % ##### % | | ???????????????????##########?# % #???# | | ???????????????????# #?# %% % #???###### | | ???????????????????# """ #?# """ """ #????????? | | ??????????????????## "R" ### """ """ #????????? | | ??????????????????# " " + + """ """ #??????*#? | | ???????????????????# ### #???? #? | | ???????????????????#[[ """" #?#####+###+#?? #?? | | ???????????????????#[[ """" #????# ### #?? | | ???????????????????#[[ """" ###### #?? | | ???????????????????# + #?? | | ???????????????????#####+#### #?? | | ???????????????####### ## " " #?? | | ????????????? """"" #?? | | ????????????????????## """"" +?? | | ?????????????????????# """"" #?? | | ?????????????????????# ####### """ #?? | | ?????????????????????## @##?????# #?? | | ??????????????????????# #??????# ### | | ??????????????????????# #??????# """ | | ??????????????????????# #??????# """"" | | ??????????????????????# #??????## """"" | | ?????????????????????? g"???????# """"" | | ?????????????????????# ao???????# """ | | ?????????????????????# ???????# | | ?????????????????????# g ???????# | | ?????????????????????# ???????#####"T"# | | ?????????????????????# ???????????######+####+ | | ?????????????????????# k"???????????# | | ?????????????????????## r#???????????# """"" """ | | ??????????????????????# ????????????# ""T"" """ | | ??????????????????????+ ????????????# """ | | ??????????????????????? ????????????# | | ??????????????????????????????????????############ | | ?????????????????????????????????????????????????? | | ?????????????????????????????????????????????????? | | ?????????????????????????????????????????????????? | | ?????????????????????????????????????????????????? | | ?????????????????????????????????????????????????? | | ?????????????????????????????????????????????????? | | ?????????????????????????????????????????????????? | | ?????????????????????????????????????????????????? | +----------------------------------------------------+ Best States ------------- Heat Dissipation 38 Energy Generation 12 Energy Capacity 265 Matter Stores 500 Matter Capacity 500 Sight Range 16 Terrain Scan Density 10 Armor Coverage 225 Evasion (%) 50 Item Schematics ----------------- None Robot Schematics ------------------ None Fabricated ------------ Nothing Alien Tech Used ----------------- None Achievements -------------- First Step to Greatness Fist Fight GoHome() Challenges ------------ None Game ------ Seed CryofiberTitaniumReactor Manual? 0 Play Time 00:15:30 Cumulative 1.5 hours Start 2019.12.07 @ 00:24:23 End 2019.12.07 @ 00:40:24 Sessions 1 Manual Loads 0 Difficulty Rogue Special Mode None Game No. 3 Rogue 3 Adventurer 0 Explorer 0 Win Type - Total 0 Types 0/0/0/0/0/0/0 Lore% 1 Gallery% 4 Achievement% 5 Wizard Run 0 Options --------- ASCII 0 Keyboard 0 Movement Mouse Keybinds 0 Fullscreen 1 Font 14/SmallcapsGlow Map View 84x54 Tactical HUD 0 Map Filters NONE Filters NONE Steam 1 RUN: 82723476-bf96-49aa-aee0-f50eeda8bee0